fUSD/lending_fUSD_20250628
["ID","MTS","AMOUNT","RATE_DAILY","PERIOD"]
[368350883,1751136633438,-486.94000001,0.00029616,2]
[368350890,1751136637782,-482.0,0.00029616,2]
[368350891,1751136637795,-4354.28324673,0.00029616,2]
[368350893,1751136637822,-12175.3581,0.00029616,2]
[368350894,1751136637834,-1144.44820268,0.00029616,2]
[368350895,1751136637848,-358.33485164,0.00029616,2]
[368350898,1751136637879,-8170.59652141,0.00029616,2]
[368350904,1751136637932,-530.7,0.00029616,2]
[368350911,1751136637990,-457.51205295,0.00029616,2]
[368350913,1751136638000,-200.0,0.00029659,2]
[368350915,1751136638010,-10938.6746367,0.0002969,2]
[368350917,1751136638020,-1653.54764033,0.0002969,2]
[368350918,1751136638029,-669.67496428,0.00029691,10]
[368350919,1751136638039,-200.0,0.00029692,2]
[368350920,1751136638048,-500.0,0.00029692,7]
[368350921,1751136638058,-750.87970289,0.00029692,7]
[368350922,1751136638067,-12500.0,0.000297,3]
[368350923,1751136638077,-1100.0,0.000297,10]
[368350924,1751136638086,-835.41973025,0.000297,3]
[368350925,1751136638188,-6202.02183847,0.000297,2]
[368350926,1751136638198,-500.0,0.00029705,2]
[368350928,1751136638208,-199.3476315,0.00029705,2]
[368350929,1751136638218,-150.0,0.00029705,2]
[368350930,1751136638227,-150.0,0.00029705,2]
[368350931,1751136638237,-500.0,0.00029705,2]
[368350932,1751136638247,-150.0,0.00029705,2]
[368350933,1751136638256,-153.20354161,0.00029705,2]
[368350936,1751136638266,-150.0,0.00029705,2]
[368350938,1751136638275,-201.22768234,0.00029705,2]
[368350940,1751136638286,-150.0,0.00029705,2]
[368350942,1751136638294,-500.0,0.00029705,2]
[368350944,1751136638304,-1804.33985138,0.00029715,15]
[368350946,1751136638313,-10938.6746367,0.00029722,2]
[368350948,1751136638323,-1653.54764033,0.00029722,2]
[368350950,1751136638332,-19213.63068376,0.00029732,2]
[368350952,1751136638342,-1653.54764033,0.00029738,2]
[368350954,1751136638351,-1000.0,0.00029744,5]
[368350956,1751136638361,-502.45034577,0.00029744,5]
[368350958,1751136638371,-585.0,0.0002975,2]
[368350960,1751136638380,-150.0,0.00029765,2]
[368350962,1751136638389,-150.0,0.00029768,2]
[368350964,1751136638399,-150.0,0.0002977,2]
[368350966,1751136638408,-10938.6746367,0.00029771,2]
[368350968,1751136638418,-1653.54764033,0.00029771,2]
[368350970,1751136638427,-150.0,0.00029773,2]
[368350972,1751136638439,-150.0,0.00029775,2]
[368350974,1751136638448,-9482.8419801,0.00029781,2]
[368350976,1751136638458,-150.0,0.00029786,2]
[368350978,1751136638467,-150.0,0.00029787,2]
[368350980,1751136638476,-164.0,0.0002979,2]
[368350982,1751136638486,-1000.0,0.0002979,7]
[368350984,1751136638495,-150.0,0.00029799,2]
[368350986,1751136638505,-1011.271,0.000298,24]
[368350988,1751136638514,-172.597,0.000298,24]
[368350990,1751136638524,-1400.0,0.000298,10]
[368350993,1751136638534,-150.0,0.00029801,2]
[368350995,1751136638543,-150.0,0.00029802,2]
[368350997,1751136638553,-311.1,0.00029809,2]
[368350999,1751136638562,-215.0738,0.00029809,2]
[368351001,1751136638572,-150.0,0.00029813,2]
[368351003,1751136638581,-150.0,0.00029818,2]
[368351005,1751136638590,-150.0,0.00029841,2]
[368351007,1751136638599,-10938.6746367,0.00029842,2]
[368351009,1751136638609,-150.0,0.00029846,2]
[368351011,1751136638618,-150.0,0.00029852,2]
[368351013,1751136638629,-150.0,0.00029852,2]
[368351015,1751136638638,-150.0,0.00029856,2]
[368351017,1751136638647,-150.0,0.00029859,2]
[368351019,1751136638656,-150.0,0.00029862,2]
[368351021,1751136638666,-150.0,0.00029863,2]
[368351023,1751136638674,-1653.54764033,0.00029867,2]
[368351025,1751136638684,-750.0,0.00029872,2]
[368351027,1751136638693,-150.0,0.00029872,2]
[368351029,1751136638703,-500.0,0.00029872,2]
[368351031,1751136638712,-150.0,0.00029872,2]
[368351033,1751136638721,-500.0,0.00029872,2]
[368351035,1751136638730,-500.0,0.00029872,2]
[368351037,1751136638741,-500.0,0.00029872,2]
[368351038,1751136638751,-500.0,0.00029872,2]
[368351040,1751136638760,-500.0,0.00029872,2]
[368351043,1751136638771,-150.0,0.00029872,2]
[368351045,1751136638780,-150.0,0.00029875,2]
[368351047,1751136638789,-6202.02183847,0.00029877,2]
[368351049,1751136638798,-10938.6746367,0.00029879,2]
[368351051,1751136638807,-1653.54764033,0.0002988,2]
[368351053,1751136638817,-168.0,0.00029882,2]
[368351055,1751136638826,-150.0,0.00029884,2]
[368351057,1751136638835,-150.0,0.00029886,2]
[368351058,1751136638845,-1000.0,0.00029889,2]
[368351059,1751136638857,-1000.0,0.00029889,2]
[368351060,1751136638866,-1000.0,0.00029889,2]
[368351061,1751136638875,-1000.0,0.00029889,2]
[368351062,1751136638884,-1000.0,0.00029889,2]
[368351063,1751136638895,-1000.0,0.00029889,2]
[368351064,1751136638910,-1000.0,0.00029889,2]
[368351065,1751136638931,-1000.0,0.00029889,2]
[368351066,1751136638943,-1000.0,0.00029889,2]
[368351067,1751136638953,-1005.15896455,0.00029889,2]
[368351068,1751136638963,-155.75592391,0.0002989,2]
[368351069,1751136638973,-866.12319298,0.0002989,2]
[368351070,1751136638982,-10938.6746367,0.0002989,2]
[368351071,1751136638991,-1000.0,0.00029895,2]
[368351073,1751136639001,-150.0,0.00029897,2]
[368351075,1751136639010,-328.27757445,0.00029899,2]
[368351076,1751136639020,-150.0,0.00029899,2]
[368351078,1751136639029,-150.0,0.00029899,2]
[368351080,1751136639039,-5000.0,0.000299,2]
[368351082,1751136639049,-1800.0,0.000299,10]
[368351084,1751136639059,-167.27690369,0.000299,2]
[368351086,1751136639068,-150.0,0.00029901,2]
[368351088,1751136639078,-150.0,0.00029909,2]
[368351091,1751136639087,-150.0,0.00029909,2]
[368351092,1751136639097,-150.0,0.0002991,2]
[368351094,1751136639106,-150.0,0.00029911,2]
[368351096,1751136639116,-220.61789409,0.00029918,15]
[368351098,1751136639125,-215.0,0.0002992,2]
[368351100,1751136639134,-150.0,0.00029931,2]
[368351102,1751136639143,-150.0,0.00029937,2]
[368351104,1751136639152,-150.0,0.00029944,2]
[368351106,1751136639162,-150.0,0.00029957,2]
[368351108,1751136639172,-150.0,0.00029961,2]
[368351110,1751136639181,-150.0,0.00029965,2]
[368351112,1751136639190,-1500.0,0.00029966,30]
[368351114,1751136639199,-1500.0,0.00029966,30]
[368351116,1751136639208,-30196.93670633,0.00029971,7]
[368351119,1751136639224,-10381656.0507919,0.00029971,7]
[368351121,1751136639236,-1000.0,0.00029971,7]
[368351125,1751136639264,-7314.81642538,0.00029971,7]
[368351127,1751136639275,-1111.66514836,0.00029971,7]
[368351202,1751136639984,-2082.79702983,0.00029971,7]
[368351204,1751136639995,-947.04999999,0.00029971,7]
[368351206,1751136640007,-1708.99589437,0.00029971,7]
[368351207,1751136640017,-533.82504609,0.00029971,7]
[368351209,1751136640029,-109037.81995732,0.00029971,7]
[368351212,1751136640040,-56633.0007054,0.00029971,7]
[368351214,1751136640052,-88789.21500026,0.00029971,7]
[368351216,1751136640063,-809.202865,0.00029971,7]
[368351218,1751136640074,-225639.02193713,0.00029971,7]
[368351223,1751136640109,-440741.08720097,0.00029971,7]
[368351225,1751136640121,-470.493024,0.00029971,7]
[368351233,1751136640206,-75590.23693662,0.00029971,7]
[368351236,1751136640218,-51229.83073199,0.00029971,7]
[368351247,1751136640318,-252.38640384,0.00029971,7]
[368351249,1751136640330,-10143.97547024,0.00029971,7]
[368351259,1751136640422,-1439.99999995,0.00029971,7]
[368351517,1751136642886,-487.8874,0.00029971,7]
[368351534,1751136643045,-268.92139386,0.00029971,7]
[368351818,1751136645916,-24905.0000001,0.00029971,7]
[368351831,1751136646681,-668.14138703,0.00029971,7]
[368351832,1751136646696,-14872.28750565,0.00029971,7]
[368351835,1751137038035,178.07,0.00027964,120]
[368351836,1751137093662,204.0,0.0001864,2]
[368351837,1751137094189,204.0,0.00025533,11]
[368351838,1751137094276,157771.39234976,0.00038714,60]
[368351839,1751137203210,3032.17887798,0.0002,2]
[368351841,1751137397445,1519.89550569,0.00038718,120]
[368351842,1751137405449,2291.63984988,0.00038718,120]
[368351843,1751137408175,15328.0,0.00028,30]
[368351844,1751137412760,187.74,0.00016712,2]
[368351845,1751137422460,1521.34288205,0.00038718,120]
[368351846,1751137505636,211.46,0.00038718,60]
[368351847,1751137505667,1151.92593689,0.00027397,120]
[368351848,1751137505696,593.13183663,0.00027397,120]
[368351849,1751137507022,230.98,0.00038718,60]
[368351851,1751137548833,156.09,0.00013699,2]
[368351852,1751137615140,-204.0,0.00020507,2]
[368351853,1751137615163,-7.60487005,0.00021053,2]
[368351855,1751137710672,500.0,0.00038716,60]
[368351856,1751137710916,500.0,0.00038716,60]
[368351857,1751137711208,500.0,0.00038716,60]
[368351858,1751137711596,500.0,0.00038716,60]
[368351859,1751137711716,500.0,0.00038716,60]
[368351860,1751137711900,445.15743219,0.00038716,60]
[368351861,1751137832029,-292.39512995,0.00021053,2]
[368351862,1751137832039,-2041.24394468,0.000214,2]
[368351863,1751137832049,-169.0,0.000215,2]
[368351864,1751137832059,-204.69466644,0.0002155,2]
[368351865,1751137832068,-181.515989,0.000217,2]
[368351866,1751137832078,-151.0,0.000217,2]
[368351867,1751137832087,-181.515989,0.00021954,2]
[368351868,1751137832097,-74.49301072,0.00022248,2]
[368351869,1751137832116,-82.09398928,0.00022248,2]
[368351870,1751137832126,-156.09,0.00022505,2]
[368351871,1751137832136,-205.0,0.00022517,2]
[368351872,1751137832145,-1200.0,0.00022556,2]
[368351873,1751137832156,-300.0,0.00022557,2]
[368351874,1751137832166,-1500.0,0.00022557,2]
[368351875,1751137832176,-300.0,0.00022679,2]
[368351876,1751137832186,-1200.0,0.0002268,2]
[368351877,1751137832196,-169.0,0.00022696,2]
[368351878,1751137832206,-162.380719,0.00022796,2]
[368351879,1751137832217,-1500.0,0.00023159,2]
[368351880,1751137832227,-1500.0,0.00023159,2]
[368351881,1751137832238,-7153.672808,0.00023251,2]
[368351882,1751137832248,-204.69466643,0.00023278,2]
[368351883,1751137832259,-286.02947413,0.00023344,2]
[368351884,1751137832269,-446.49,0.00023368,2]
[368351885,1751137832279,-16449.87,0.00023863,2]
[368351886,1751137832288,-930.0,0.00023863,2]
[368351887,1751137832298,-3646.74,0.00023863,2]
[368351888,1751137832312,-8978.9257446,0.00023865,2]
[368351889,1751137832397,-250.0,0.0002398,2]
[368351890,1751137832407,-1000.0,0.00024449,2]
[368351891,1751137832416,-250.0,0.0002445,2]
[368351892,1751137832425,-3141.45,0.0002455,2]
[368351893,1751137832435,-1680.0,0.00024611,2]
[368351894,1751137832443,-1200.0,0.00024629,2]
[368351895,1751137832452,-151.0,0.00024658,2]
[368351896,1751137832462,-2791.88,0.00024658,2]
[368351898,1751137832471,-1092.37,0.00024658,2]
[368351900,1751137832480,-2400.35,0.00024691,2]
[368351902,1751137832490,-250.0,0.0002475,2]
[368351904,1751137832499,-169.88,0.00024882,2]
[368351906,1751137832508,-204.69466643,0.00025006,2]
[368351908,1751137832518,-666.0,0.00025084,2]
[368351910,1751137832527,-23900.0,0.00025106,2]
[368351912,1751137832536,-5121.43,0.00025156,2]
[368351913,1751137832546,-185.04,0.00025226,2]
[368351914,1751137832555,-6652.54,0.00025456,2]
[368351915,1751137832565,-1807.77,0.00025522,2]
[368351916,1751137832574,-551.25,0.00025653,2]
[368351917,1751137832584,-182.51,0.00025962,2]
[368351919,1751137832593,-1000.0,0.00026033,2]
[368351921,1751137832602,-205.0,0.00026265,7]
[368351922,1751137832613,-2844.7337924,0.00026496,2]
[368351923,1751137832623,-1852.42,0.00026777,2]
[368351924,1751137832633,-541.68,0.00026804,2]
[368351925,1751137832642,-2351.0,0.00026854,2]
[368351926,1751137832653,-269.0,0.00027049,2]
[368351927,1751137832662,-1650.0,0.000271,2]
[368351928,1751137832673,-785.04,0.00027137,2]
[368351929,1751137832682,-250.0,0.00027147,2]
[368351930,1751137832692,-1000.0,0.00027209,2]
[368351931,1751137832702,-1331.72441429,0.00027266,2]
[368351932,1751137832712,-512.54,0.00027397,2]
[368351933,1751137832721,-21341.65371245,0.000277,5]
[368351934,1751137832730,-3100.73879797,0.00027758,2]
[368351935,1751137832739,-2453.14,0.00027862,2]
[368351936,1751137832749,-3295.59,0.00027862,2]
[368351937,1751137832759,-2041.22348839,0.00028,2]
[368351938,1751137832771,-279.74419682,0.00028,2]
[368351939,1751137832790,-1446.7187223,0.00028,2]
[368351940,1751137832805,-1807.84359249,0.00028,2]
[368351941,1751137832815,-271.0,0.00028029,2]
[368351942,1751137832824,-3213.52814275,0.00028121,2]
[368351943,1751137832833,-8261.05181482,0.00028176,2]
[368351944,1751137832843,-382.31,0.00028276,2]
[368351945,1751137832852,-300.0,0.00028313,2]
[368351946,1751137832862,-6614.82488896,0.00028313,2]
[368351947,1751137832871,-178.42522448,0.00028313,2]
[368351948,1751137832880,-1000.0,0.00028313,2]
[368351949,1751137832889,-1000.0,0.00028313,2]
[368351950,1751137832898,-1000.0,0.00028313,2]
[368351951,1751137832908,-298.56167226,0.00028313,2]
[368351952,1751137832917,-1000.0,0.00028313,2]
[368351953,1751137832927,-1000.0,0.00028313,2]
[368351954,1751137832937,-1000.0,0.00028313,2]
[368351955,1751137832948,-500.0,0.00028313,2]
[368351956,1751137832959,-1000.0,0.00028313,2]
[368351957,1751137832969,-1000.0,0.00028313,2]
[368351958,1751137832979,-500.0,0.00028313,2]
[368351959,1751137832990,-500.0,0.00028313,2]
[368351960,1751137832999,-1000.0,0.00028313,2]
[368351961,1751137833009,-500.0,0.00028313,2]
[368351962,1751137833018,-1000.0,0.00028313,2]
[368351963,1751137833028,-500.0,0.00028313,2]
[368351964,1751137833038,-500.0,0.00028313,2]
[368351965,1751137833047,-500.0,0.00028313,2]
[368351966,1751137833056,-1000.0,0.00028313,2]
[368351967,1751137833066,-500.0,0.00028313,2]
[368351968,1751137833076,-207.4,0.00028313,2]
[368351969,1751137833086,-500.0,0.00028313,2]
[368351970,1751137833096,-500.0,0.00028313,2]
[368351971,1751137833107,-726.91364642,0.00028313,2]
[368351972,1751137833117,-500.0,0.00028313,2]
[368351973,1751137833128,-500.0,0.00028313,2]
[368351974,1751137833138,-500.0,0.00028313,2]
[368351975,1751137833147,-500.0,0.00028313,2]
[368351976,1751137833156,-500.0,0.00028313,2]
[368351977,1751137833165,-300.0,0.00028313,2]
[368351978,1751137833175,-300.0,0.00028313,2]
[368351979,1751137833185,-300.0,0.00028313,2]
[368351980,1751137833194,-300.0,0.00028313,2]
[368351981,1751137833203,-500.0,0.00028313,2]
[368351982,1751137833212,-500.0,0.00028313,2]
[368351983,1751137833221,-500.0,0.00028313,2]
[368351984,1751137833231,-500.0,0.00028313,2]
[368351985,1751137833240,-500.0,0.00028313,2]
[368351986,1751137833250,-300.0,0.00028313,2]
[368351987,1751137833259,-303.29450176,0.00028313,2]
[368351988,1751137833268,-320.95502836,0.00028313,2]
[368351989,1751137833278,-304.12,0.00028344,2]
[368351990,1751137833287,-16622.59,0.0002836,2]
[368351991,1751137833297,-159.98,0.00028373,2]
[368351992,1751137833309,-8926.61,0.00028379,2]
[368351993,1751137833319,-60999.96,0.00028391,2]
[368351994,1751137833329,-500.0,0.000284,5]
[368351995,1751137833339,-510.428122,0.000284,5]
[368351996,1751137833348,-500.0,0.000284,3]
[368351997,1751137833358,-8261.05181479,0.00028444,2]
[368351998,1751137833369,-208.41,0.00028523,2]
[368351999,1751137833379,-13207.0,0.00028531,2]
[368352000,1751137833389,-197.41,0.00028669,2]
[368352001,1751137833400,-10000.0,0.000287,7]
[368352002,1751137833410,-200.0,0.00028702,2]
[368352003,1751137833420,-8261.05181479,0.00028711,2]
[368352004,1751137833430,-512.54,0.00028767,2]
[368352005,1751137833439,-260.85878218,0.00028861,2]
[368352006,1751137833449,-1003.07249981,0.00028948,3]
[368352007,1751137833459,-8261.05181479,0.00028979,2]
[368352008,1751137833468,-1000.0,0.00029,29]
[368352009,1751137833478,-168.0,0.00029061,2]
[368352010,1751137833487,-604.898752,0.00029066,8]
[368352011,1751137833496,-8261.05181479,0.00029246,2]
[368352012,1751137833506,-1000.0,0.00029287,2]
[368352013,1751137833517,-3292.0,0.00029301,2]
[368352014,1751137833526,-360.942346,0.000295,2]
[368352015,1751137833535,-8261.05181479,0.00029514,2]
[368352016,1751137833545,-1000.0,0.000296,2]
[368352017,1751137833554,-311.1,0.00029682,2]
[368352018,1751137833563,-215.0738,0.00029682,2]
[368352019,1751137833572,-3329.3537746,0.00029692,2]
[368352020,1751137833582,-1768.0,0.000297,2]
[368352021,1751137833592,-1008.0,0.000297,2]
[368352022,1751137833601,-150.0,0.00029712,2]
[368352023,1751137833611,-200.0,0.00029725,2]
[368352024,1751137833620,-960.123,0.00029726,23]
[368352025,1751137833631,-150.0,0.00029727,2]
[368352026,1751137833640,-150.0,0.00029728,2]
[368352027,1751137833650,-150.0,0.00029729,2]
[368352028,1751137833661,-150.0,0.00029737,2]
[368352029,1751137833670,-150.0,0.00029738,2]
[368352030,1751137833680,-150.0,0.00029739,2]
[368352031,1751137833690,-1000.0,0.00029746,2]
[368352032,1751137833699,-150.0,0.00029751,2]
[368352033,1751137833709,-150.0,0.00029756,2]
[368352034,1751137833718,-150.0,0.00029758,2]
[368352035,1751137833728,-150.0,0.00029759,2]
[368352036,1751137833738,-1000.0,0.00029766,2]
[368352037,1751137833748,-150.0,0.00029776,2]
[368352038,1751137833757,-150.0,0.00029776,2]
[368352039,1751137833768,-150.0,0.00029778,2]
[368352040,1751137833777,-150.0,0.0002978,2]
[368352041,1751137833786,-150.0,0.00029781,2]
[368352042,1751137833796,-22681.42504841,0.00029782,7]
[368352043,1751137833897,-271.62240779,0.00029782,7]
[368352044,1751137833924,-5658.17588147,0.00029782,7]
[368352045,1751137833947,-1353.3520005,0.00029782,7]
[368352046,1751137837979,-835.41973025,0.000287,7]
[368352047,1751137837989,-8261.05181479,0.00029781,2]
[368352048,1751137837998,-990.40199448,0.00029782,2]
[368352049,1751137838008,-10499708.64759828,0.00029782,7]
[368352050,1751137838032,-657.685,0.00029782,7]
[368352051,1751137838043,-922.86362823,0.00029782,7]
[368352052,1751137838139,-1708.032939,0.00029782,7]
[368352053,1751137838151,-39214.4354472,0.00029782,7]
[368352054,1751137838191,-448.09099116,0.00029782,7]
[368352055,1751137838203,-2381.87829327,0.00029782,7]
[368352056,1751137838215,-10052.91572377,0.00029782,7]
[368352057,1751137838226,-5348.1779212,0.00029782,7]
[368352058,1751137838246,-19977.58398667,0.00029782,7]
[368352346,1751137841122,-151.22184089,0.00029691,15]
[368352348,1751137841133,-922.27815911,0.00029782,7]
[368352350,1751137841146,-4225.38785828,0.00029782,7]
[368352353,1751137841167,-3699.979966,0.00029782,7]
[368352540,1751137843052,-1728.9,0.00029782,7]
[368352542,1751137843064,-4752.8,0.00029782,7]
[368352556,1751137843181,-354.2520047,0.00029782,7]
[368352569,1751137843286,-221042.90737951,0.00029782,7]
[368352916,1751137846681,-1421.43397444,0.00029782,7]
[368352921,1751137846721,-311.95235009,0.00029782,7]
[368352924,1751137846732,-493.94500019,0.00029782,7]
[368352926,1751137846744,-369.5354299,0.00029782,7]
[368352927,1751137846755,-974.32,0.00029782,7]
[368352928,1751137846766,-373.77361933,0.00029782,7]
[368352929,1751137846778,-3363.65285643,0.00029782,7]
[368352930,1751137846793,-2059.53368367,0.00029782,7]
[368354436,1751137862960,1000.0,0.00038716,60]
[368354805,1751137888898,1000.0,0.00038716,60]
[368354806,1751137899670,300000.0,0.00038716,60]
[368354807,1751137901340,1000.0,0.00038716,60]
[368354808,1751137919282,199998.0,0.00038716,60]
[368354809,1751137939701,1000.0,0.00038716,60]
[368354810,1751138253764,150.0,0.00020001,2]
[368354811,1751138331217,839.0,0.00027397,120]
[368354813,1751138571699,156.09,0.00013699,2]
[368354814,1751138576425,1539706.95842869,0.00038719,60]
[368354815,1751138670348,250.0,0.00015,2]
[368354816,1751138707899,59443.91,0.00014,2]
[368354817,1751138707937,14096.94626078,0.00014,2]
[368354818,1751138707975,323486.94779755,0.00014,2]
[368354819,1751138828402,29865.97594481,0.00016435,2]
[368354820,1751138834124,9752.71998736,0.00015,2]
[368354821,1751138840541,3130.45795013,0.0001305,2]
[368354822,1751138866710,1002.8255058,0.00038719,120]
[368354823,1751138879589,130000.0,0.00014,2]
[368354824,1751138904782,1882.50963668,0.0001,2]
[368354825,1751138920199,84194.62282886,0.000151,2]
[368354826,1751138920227,261.47485514,0.000107,2]
[368354828,1751138924117,1363.98027112,0.00010136,2]
[368354829,1751138924627,41584.48601739,0.00013368,2]
[368354830,1751138927951,1500.0,0.00038719,120]
[368354838,1751139032231,-300.0,0.00019399,2]
[368354841,1751139032243,-545.09770921,0.000194,2]
[368354842,1751139032294,-204.52890204,0.000194,2]
[368354843,1751139032304,-702.40414633,0.000194,2]
[368354844,1751139032393,-25702.01537817,0.000194,2]
[368354845,1751139032503,-157596.36772048,0.000194,2]
[368354846,1751139032515,-29026.17115278,0.000194,2]
[368354847,1751139032525,-500.0,0.000197,2]
[368354848,1751139032535,-502.91721722,0.000197,2]
[368354849,1751139032545,-500.0,0.000197,2]
[368354850,1751139032555,-500.0,0.000197,2]
[368354851,1751139032565,-500.0,0.000197,2]
[368354852,1751139032575,-500.0,0.000197,2]
[368354853,1751139032585,-508.27023914,0.000197,2]
[368354854,1751139032594,-8300.0,0.0002,4]
[368354855,1751139032604,-39550.87428199,0.0002,4]
[368354856,1751139032647,-139662.19056036,0.0002,4]
[368354857,1751139032656,-2603.01145784,0.0002,2]
[368354858,1751139032666,-501.21519155,0.00020248,2]
[368354859,1751139032675,-1000.0,0.00020248,2]
[368354860,1751139032685,-1000.0,0.00020248,2]
[368354861,1751139032695,-197.03789385,0.00020248,2]
[368354862,1751139032704,-1500.0,0.00020796,2]
[368354863,1751139032714,-1500.0,0.00020796,2]
[368354865,1751139032723,-420.0,0.00021136,2]
[368354867,1751139032733,-1162.01785991,0.00021344,2]
[368354868,1751139032743,-2000.0,0.00021344,2]
[368354870,1751139032753,-534.08427909,0.00021892,2]
[368354872,1751139032763,-300.0,0.00022,2]
[368354874,1751139032773,-1500.0,0.00022,2]
[368354875,1751139032782,-323.0,0.00023029,2]
[368354876,1751139032792,-156.09,0.00023973,2]
[368354877,1751139032803,-300.0,0.00024618,2]
[368354878,1751139032813,-180.48,0.00025113,2]
[368354879,1751139032823,-205.0,0.00025273,2]
[368354880,1751139032832,-201.0,0.00025273,2]
[368354881,1751139032842,-300.0,0.0002637,2]
[368354882,1751139032851,-1500.0,0.0002637,2]
[368354883,1751139032862,-904.19,0.00026745,2]
[368354884,1751139032872,-852.0,0.00026826,2]
[368354885,1751139032882,-150.0,0.00026953,2]
[368354886,1751139032892,-2569.0,0.00027062,2]
[368354887,1751139032904,-307.52,0.00027397,2]
[368354888,1751139032913,-23900.0,0.00027806,2]
[368354889,1751139032927,-6002.42,0.00027822,2]
[368354890,1751139032937,-282.35,0.00027873,2]
[368354891,1751139032947,-666.0,0.00027888,2]
[368354892,1751139032956,-2293.19,0.00027888,2]
[368354893,1751139032966,-150.00000281,0.00028,60]
[368354894,1751139032975,-990.0,0.00028048,7]
[368354895,1751139032985,-151.0,0.0002816,2]
[368354896,1751139032995,-200.0,0.00028161,2]
[368354897,1751139033004,-952.13,0.00028168,2]
[368354898,1751139033014,-1000.0,0.00028171,2]
[368354899,1751139033028,-500.0,0.00028176,2]
[368354900,1751139033038,-500.0,0.00028176,2]
[368354901,1751139033048,-327.61566878,0.00028176,2]
[368354902,1751139033059,-500.0,0.00028176,2]
[368354903,1751139033070,-500.0,0.00028176,2]
[368354904,1751139033080,-500.0,0.00028176,2]
[368354905,1751139033090,-155.89258094,0.00028176,2]
[368354906,1751139033100,-500.0,0.00028176,2]
[368354907,1751139033110,-500.0,0.00028176,2]
[368354908,1751139033121,-428.00767624,0.00028176,2]
[368354909,1751139033131,-426.02403755,0.00028176,2]
[368354910,1751139033143,-500.0,0.00028176,2]
[368354911,1751139033153,-500.0,0.00028176,2]
[368354912,1751139033163,-500.0,0.00028176,2]
[368354913,1751139033173,-500.0,0.00028176,2]
[368354914,1751139033183,-500.0,0.00028176,2]
[368354915,1751139033193,-500.0,0.00028176,2]
[368354916,1751139033203,-582.57926389,0.00028176,2]
[368354917,1751139033213,-500.0,0.00028176,2]
[368354918,1751139033222,-483.71148349,0.00028176,2]
[368354919,1751139033232,-500.0,0.00028176,2]
[368354920,1751139033242,-500.0,0.00028176,2]
[368354921,1751139033252,-53569.0,0.00028177,2]
[368354922,1751139033262,-1868.11,0.00028177,2]
[368354923,1751139033272,-8990.12,0.00028177,2]
[368354924,1751139033281,-173.36,0.00028179,2]
[368354925,1751139033292,-346.98,0.00028181,120]
[368354926,1751139033302,-200.0,0.00028204,2]
[368354927,1751139033312,-2751.0,0.00028212,2]
[368354928,1751139033322,-200.0,0.00028237,7]
[368354929,1751139033331,-9380.65666354,0.00028303,2]
[368354930,1751139033342,-300.0,0.00028313,2]
[368354931,1751139033352,-6912.642,0.00028313,2]
[368354932,1751139033362,-500.0,0.00028313,2]
[368354933,1751139033372,-500.0,0.00028313,2]
[368354934,1751139033382,-207.4,0.00028313,2]
[368354935,1751139033392,-500.0,0.00028313,2]
[368354936,1751139033402,-500.0,0.00028313,2]
[368354937,1751139033412,-500.0,0.00028313,2]
[368354938,1751139033422,-500.0,0.00028313,2]
[368354939,1751139033432,-500.0,0.00028313,2]
[368354940,1751139033442,-500.0,0.00028313,2]
[368354941,1751139033452,-500.0,0.00028313,2]
[368354942,1751139033462,-500.0,0.00028313,2]